bitfinex/quotes_SOLUSD_20241126
["timestamp","ask_amount","ask_price","bid_price","bid_amount"]
[1732610185003,28.00367385,231.54,231.46,28.00367385]
[1732610185183,28.00367385,231.53,231.46,28.00367385]
[1732610185389,28.00367385,231.54,231.47,28.00367385]
[1732610185584,28.00367385,231.55,231.47,28.00367385]
[1732610185790,28.00367385,231.55,231.47,32.32377385]
[1732610186192,28.00367385,231.57,231.5,28.00367385]
[1732610186992,4.318,231.59,231.47,4.3201]
[1732610186993,28.00367385,231.59,231.52,28.00367385]
[1732610187203,32.32097385,231.63,231.55,28.00367385]
[1732610187387,28.00367385,231.66,231.58,28.00367385]
[1732610187583,28.00367385,231.67,231.59,28.00367385]
[1732610188087,28.00367385,231.64,231.56,28.00367385]
[1732610188295,28.00367385,231.63,231.56,28.00367385]
[1732610188494,28.00367385,231.66,231.58,28.00367385]
[1732610188798,28.00367385,231.66,231.59,28.00367385]
[1732610189011,28.00367385,231.68,231.61,28.00367385]
[1732610189503,28.00367385,231.71,231.64,28.00367385]
[1732610189682,28.00367385,231.71,231.63,28.00367385]
[1732610189876,38.77884103,231.72,231.65,28.00367385]
[1732610190085,10.77516718,231.72,231.66,28.00367385]
[1732610190395,28.00367385,231.7,231.62,28.00367385]
[1732610190595,28.00367385,231.66,231.59,32.32157385]
[1732610191208,28.00367385,231.63,231.58,20.0]
[1732610191406,14.3157,231.71,231.55,12.6254]
[1732610191610,28.00367385,231.62,231.55,16.944]
[1732610191918,28.00367385,231.57,231.51,32.7401]
[1732610192117,28.00367385,231.54,231.49,12.5169]
[1732610192498,28.00367385,231.56,231.49,44.84027385]
[1732610192703,15.109,231.65,231.49,44.84027385]
[1732610192704,28.00367385,231.57,231.5,28.00367385]
[1732610193213,23.776884,231.55,231.49,12.5169]
[1732610193510,51.78055785,231.55,231.49,12.5169]
[1732610193716,28.00367385,231.5,231.44,32.8742]
[1732610193904,28.00367385,231.51,231.44,60.87787385]
[1732610194097,23.776884,231.51,231.45,28.00367385]
[1732610194298,51.78055785,231.51,231.44,65.19847385]
[1732610194505,23.776884,231.51,231.39,4.3217]
[1732610195016,23.776884,231.51,231.45,28.00367385]
[1732610195203,28.00367385,231.6,231.39,4.3217]
[1732610195204,28.00367385,231.54,231.46,28.00367385]
[1732610195398,23.776884,231.53,231.46,28.00367385]
[1732610195603,28.00367385,231.55,231.48,28.00367385]
[1732610195815,91.97931845,231.79,231.39,15.1259]
[1732610195816,28.00367385,231.53,231.45,28.00367385]
[1732610196009,51.78055785,231.5,231.42,28.00367385]
[1732610196212,28.00367385,231.47,231.39,32.32537385]
[1732610196406,28.00367385,231.47,231.4,28.00367385]
[1732610196802,23.776884,231.47,231.41,28.00367385]
[1732610197004,23.776884,231.54,231.39,4.3217]
[1732610197005,51.78055785,231.54,231.46,28.00367385]
[1732610197403,51.78055785,231.54,231.39,15.1259]
[1732610197404,23.776884,231.54,231.47,28.00367385]
[1732610197722,51.78055785,231.54,231.47,32.32377385]
[1732610197931,28.00367385,231.56,231.49,28.00367385]
[1732610198138,28.00367385,231.6,231.53,28.00367385]
[1732610198423,28.00367385,231.64,231.57,28.00367385]
[1732610198721,28.00367385,231.64,231.48,38.00367385]
[1732610198722,4.3166,231.67,231.51,20.0]
[1732610198925,4.3166,231.67,231.55,28.00367385]
[1732610199220,4.3166,231.67,231.51,20.0]
[1732610199221,28.00367385,231.67,231.59,28.00367385]
[1732610199415,28.00367385,231.65,231.58,28.00367385]
[1732610199610,28.00367385,231.63,231.56,28.00367385]
[1732610199818,28.00367385,231.62,231.54,28.00367385]
[1732610200121,28.00367385,231.62,231.48,28.00367385]
[1732610200122,28.00367385,231.62,231.52,4.3192]
[1732610200328,28.00367385,231.64,231.56,28.00367385]
[1732610200623,15.105,231.71,231.52,4.3192]
[1732610200624,28.00367385,231.65,231.57,48.00367385]
[1732610200828,28.00367385,231.67,231.59,28.00367385]
[1732610201013,28.00367385,231.69,231.62,28.00367385]
[1732610201416,28.00367385,231.67,231.6,28.00367385]
[1732610201639,4.3151,231.75,231.57,20.0]
[1732610201640,28.00367385,231.69,231.62,28.00367385]
[1732610201921,28.00367385,231.67,231.6,32.32137385]
[1732610202321,4.3149,231.75,231.6,32.32137385]
[1732610202322,28.00367385,231.69,231.62,28.00367385]
[1732610202527,4.3149,231.75,231.62,28.00367385]
[1732610202528,28.00367385,231.71,231.62,28.00367385]
[1732610202922,28.00367385,231.69,231.62,28.00367385]
[1732610203102,28.00367385,231.71,231.64,28.00367385]
[1732610203305,28.00367385,231.73,231.64,32.32057385]
[1732610203611,28.00367385,231.69,231.61,77.71227385]
[1732610204128,28.00367385,231.73,231.65,28.00367385]
[1732610204616,28.00367385,231.72,231.65,28.00367385]
[1732610204808,28.00367385,231.71,231.63,28.00367385]
[1732610205003,28.00367385,231.72,231.65,28.00367385]
[1732610205634,28.00367385,231.72,231.66,4.3166]
[1732610205937,28.00367385,231.77,231.69,28.00367385]
[1732610206133,28.00367385,231.78,231.7,28.00367385]
[1732610206439,4.3138,231.81,231.69,28.00367385]
[1732610206440,28.00367385,231.77,231.69,28.00367385]
[1732610207030,28.00367385,231.76,231.69,28.00367385]
[1732610207352,28.00367385,231.76,231.68,28.00367385]
[1732610208045,28.00367385,231.76,231.69,28.00367385]
[1732610208347,28.00367385,231.76,231.68,4.3162]
[1732610208348,51.78055785,231.78,231.71,28.00367385]
[1732610208551,28.00367385,231.77,231.7,28.00367385]
[1732610208847,28.00367385,231.76,231.69,28.00367385]
[1732610209051,28.00367385,231.76,231.68,32.31987385]
[1732610209251,28.00367385,231.76,231.69,28.00367385]
[1732610209425,28.00367385,231.72,231.62,4.3174]
[1732610209625,28.00367385,231.67,231.61,45.3911]
[1732610209844,28.00367385,231.66,231.61,45.3911]
[1732610210048,23.776884,231.75,231.61,49.7086]
[1732610210223,23.776884,231.73,231.62,28.00367385]
[1732610210425,23.776884,231.73,231.63,28.00367385]
[1732610210627,28.00367385,231.71,231.64,28.00367385]
[1732610210940,28.00367385,231.7,231.64,28.00367385]
[1732610211140,28.00367385,231.67,231.61,45.3911]
[1732610211541,28.00367385,231.68,231.61,73.39477385]
[1732610211840,23.776884,231.73,231.61,73.39477385]
[1732610211841,28.00367385,231.7,231.63,28.00367385]
[1732610212951,23.776884,231.73,231.67,28.00367385]
[1732610213131,28.00367385,231.76,231.69,28.00367385]
[1732610213459,28.00367385,231.77,231.7,28.00367385]
[1732610213640,28.00367385,231.78,231.71,28.00367385]
[1732610213847,28.00367385,231.77,231.69,28.00367385]
[1732610214150,28.00367385,231.77,231.68,4.3162]
[1732610214151,28.00367385,231.77,231.7,28.00367385]
[1732610214851,28.00367385,231.77,231.7,32.31947385]
[1732610215146,28.00367385,231.76,231.7,4.3158]
[1732610215752,28.00367385,231.77,231.7,28.00367385]
[1732610217346,12.6781,231.85,231.72,28.00367385]
[1732610217347,28.00367385,231.79,231.72,28.00367385]
[1732610217530,28.00367385,231.79,231.69,4.316]
[1732610217531,28.00367385,231.81,231.73,28.00367385]
[1732610217724,28.00367385,231.78,231.71,28.00367385]
[1732610218442,28.00367385,231.76,231.68,28.00367385]
[1732610218645,28.00367385,231.75,231.67,28.00367385]
[1732610218833,28.00367385,231.75,231.68,28.00367385]
[1732610219552,28.00367385,231.76,231.69,28.00367385]
[1732610219926,4.3135,231.83,231.62,4.3174]
[1732610219927,23.776884,231.82,231.73,28.00367385]
[1732610220125,28.00367385,231.8,231.73,28.00367385]
[1732610220331,28.00367385,231.81,231.74,28.00367385]
[1732610221074,28.00367385,231.8,231.73,28.00367385]
[1732610221577,28.00367385,231.81,231.74,28.00367385]
[1732610222179,28.00367385,231.79,231.72,28.00367385]
[1732610222377,4.3133,231.85,231.7,4.3158]
[1732610222378,28.00367385,231.82,231.75,28.00367385]
[1732610222876,23.776884,231.82,231.76,28.00367385]
[1732610223085,28.00367385,231.83,231.76,28.00367385]
[1732610223383,23.776884,231.82,231.76,28.00367385]
[1732610223876,28.00367385,231.84,231.77,28.00367385]
[1732610224091,23.776884,231.84,231.78,28.00367385]
[1732610224294,10.76304724,231.95,231.83,28.00367385]
[1732610224492,10.76304724,231.95,231.88,28.00367385]
[1732610224493,38.76672109,231.95,231.88,28.00367385]
[1732610224870,0.4972288,231.99,231.89,43.5072]
[1732610225073,28.00367385,231.98,231.9,28.00367385]
[1732610225398,28.50090265,231.99,231.92,28.00367385]
[1732610226190,28.50090265,231.99,231.89,71.51087385]
[1732610226191,28.00367385,231.97,231.89,71.51087385]
[1732610226377,28.00367385,231.96,231.89,71.51087385]
[1732610226567,28.00367385,231.96,231.83,12.3881]
[1732610226773,30.0,231.93,231.77,12.3881]
[1732610226996,20.0,231.82,231.7,12.3881]
[1732610227186,20.0,231.77,231.58,4.3181]
[1732610227379,23.776884,231.76,231.57,12.3881]
[1732610227692,20.0,231.69,231.57,12.3881]
[1732610228108,28.00367385,231.73,231.66,28.00367385]
[1732610228269,23.776884,231.72,231.66,28.00367385]
[1732610228472,23.776884,231.68,231.57,12.3881]
[1732610228766,23.776884,231.64,231.56,31.1191]
[1732610229193,4.3172,231.63,231.52,12.3881]
[1732610229380,23.776884,231.62,231.52,12.3881]
[1732610229579,20.0,231.6,231.52,12.3881]
[1732610229788,20.0,231.6,231.33,4.324]
[1732610229789,28.00367385,231.53,231.4,40.39177385]
[1732610229985,28.00367385,231.45,231.37,59.12277385]
[1732610230299,20.0,231.49,231.37,31.1191]
[1732610230499,23.776884,231.61,231.37,31.1191]
[1732610230799,23.776884,231.49,231.37,31.1191]
[1732610231094,20.0,231.57,231.37,41.1191]
[1732610231302,20.0,231.57,231.38,0.64786737]
[1732610231481,45.49046359,231.47,231.39,45.49046359]
[1732610231807,45.49046359,231.47,231.37,31.1191]
[1732610231808,45.49046359,231.48,231.41,45.49046359]
[1732610232003,45.49046359,231.49,231.41,45.49046359]
[1732610232176,45.49046359,231.48,231.41,45.49046359]
[1732610232496,45.49046359,231.51,231.44,45.49046359]
[1732610232688,23.776884,231.56,231.37,31.1191]
[1732610232689,20.0,231.53,231.37,31.1191]
[1732610232902,45.49046359,231.47,231.37,31.1191]
[1732610233198,45.49046359,231.47,231.39,45.49046359]
[1732610233794,45.49046359,231.48,231.41,45.49046359]
[1732610233977,45.49046359,231.47,231.39,45.49046359]
[1732610234177,45.49046359,231.44,231.37,31.1191]
[1732610234580,4.3192,231.52,231.37,31.1191]
[1732610234887,23.776884,231.51,231.39,45.49046359]
[1732610235093,45.49046359,231.5,231.43,45.49046359]
[1732610235276,45.49046359,231.5,231.42,45.49046359]
[1732610235483,45.49046359,231.5,231.43,45.49046359]
[1732610235792,4.3166,231.66,231.45,0.12549]
[1732610235989,10.0,231.64,231.42,20.0]
[1732610236183,15.1082,231.66,231.44,20.0]
[1732610236389,10.0,231.65,231.45,0.6478288]
[1732610236586,5.46360314,231.64,231.42,20.0]
[1732610236787,5.46360314,231.64,231.37,35.441]
[1732610236788,45.49046359,231.45,231.38,45.49046359]
[1732610236988,45.49046359,231.41,231.34,57.87856359]
[1732610237181,45.49046359,231.42,231.34,57.87856359]
[1732610237375,4.3192,231.52,231.34,12.3881]
[1732610237581,23.776884,231.49,231.34,12.3881]
[1732610237781,20.0,231.5,231.35,0.64813758]
[1732610237995,4.3189,231.54,231.36,0.12549]
[1732610238202,24.3186,231.56,231.38,0.12549]
[1732610238398,31.6053,231.61,231.43,20.0]
[1732610238399,4.3178,231.6,231.43,20.0]
[1732610238596,45.49046359,231.54,231.47,45.49046359]
[1732610238788,45.49046359,231.55,231.48,45.49046359]
[1732610238987,45.49046359,231.52,231.44,45.49046359]
[1732610239313,49.80826359,231.6,231.45,45.49046359]
[1732610239806,45.49046359,231.53,231.45,45.49046359]
[1732610240005,45.49046359,231.52,231.45,45.49046359]
[1732610240310,45.49046359,231.53,231.46,45.49046359]
[1732610240499,23.776884,231.53,231.47,45.49046359]
[1732610240680,45.49046359,231.55,231.48,45.49046359]
[1732610240879,45.49046359,231.56,231.49,45.49046359]
[1732610241091,45.49046359,231.55,231.47,45.49046359]
[1732610241296,45.49046359,231.55,231.48,45.49046359]
[1732610241492,45.49046359,231.57,231.49,45.49046359]
[1732610241683,45.49046359,231.62,231.55,45.49046359]
[1732610241889,4.3161,231.69,231.58,45.49046359]
[1732610242099,45.49046359,231.62,231.55,45.49046359]
[1732610242303,4.3161,231.69,231.46,12.0143]
[1732610242304,4.3161,231.69,231.49,45.49046359]
[1732610242490,10.0,231.66,231.47,45.49046359]
[1732610242697,45.49046359,231.57,231.5,45.49046359]
[1732610242882,45.49046359,231.61,231.46,12.0143]
[1732610243084,4.3161,231.69,231.5,20.0]
[1732610243388,12.0286,231.71,231.5,20.0]
[1732610243389,28.092784,231.7,231.5,20.0]
[1732610243706,28.092784,231.7,231.52,10.0]
[1732610243707,4.3159,231.7,231.52,10.0]
[1732610243906,10.77331898,231.74,231.55,20.0]
[1732610244202,45.49046359,231.71,231.64,45.49046359]
[1732610244503,45.49046359,231.69,231.62,45.49046359]
[1732610244709,45.49046359,231.68,231.61,45.49046359]
[1732610244881,15.08861898,231.74,231.55,20.0]
[1732610245210,15.08861898,231.74,231.46,44.2603]
[1732610245211,10.0,231.7,231.46,44.2603]
[1732610245424,45.49046359,231.56,231.49,45.49046359]
[1732610245583,15.1063,231.69,231.46,44.2603]
[1732610245584,45.49046359,231.54,231.46,89.75076359]
[1732610245781,45.49046359,231.52,231.46,44.2603]
[1732610246092,45.49046359,231.5,231.46,32.246]
[1732610246294,45.49046359,231.52,231.44,45.49046359]
[1732610246496,23.776884,231.59,231.41,45.49046359]
[1732610246497,45.49046359,231.49,231.41,45.49046359]
[1732610246799,45.49046359,231.5,231.42,45.49046359]
[1732610246998,45.49046359,231.5,231.4,44.2603]
[1732610246999,45.49046359,231.51,231.44,45.49046359]
[1732610247378,45.49046359,231.52,231.44,45.49046359]
[1732610247785,45.49046359,231.49,231.4,44.2603]
[1732610247977,23.776884,231.51,231.4,44.2603]
[1732610247978,45.49046359,231.46,231.4,44.2603]
[1732610248183,45.49046359,231.41,231.33,32.246]
[1732610248399,45.49046359,231.48,231.27,12.38435354]
[1732610248400,65.49046359,231.38,231.27,12.38435354]
[1732610248702,45.49046359,231.38,231.27,12.38435354]
[1732610248904,45.49046359,231.4,231.33,45.49046359]
[1732610249113,45.49046359,231.39,231.32,45.49046359]
[1732610249609,45.49046359,231.36,231.29,45.49046359]
[1732610249909,45.49046359,231.31,231.27,0.37005354]
[1732610250500,45.49046359,231.29,231.27,0.37005354]
[1732610250679,23.776884,231.3,231.27,0.37005354]
[1732610250680,69.26734759,231.3,231.27,0.37005354]
[1732610250983,45.49046359,231.29,231.27,0.37005354]
[1732610251379,45.49046359,231.28,231.27,0.37005354]
[1732610251584,69.26734759,231.28,231.27,0.37005354]
[1732610251807,20.0,231.28,231.27,0.37005354]
[1732610252009,20.0,231.28,231.16,12.0143]
[1732610252010,65.49046359,231.28,231.2,45.49046359]
[1732610252506,65.49046359,231.28,231.21,45.49046359]
[1732610252694,45.49046359,231.28,231.21,45.49046359]
[1732610252892,23.776884,231.28,231.22,45.49046359]
[1732610253090,23.776884,231.28,231.21,45.49046359]
[1732610253284,20.0,231.37,231.16,12.0143]
[1732610253285,45.49046359,231.31,231.24,45.49046359]
[1732610253507,23.776884,231.3,231.24,45.49046359]
[1732610253809,65.49046359,231.27,231.19,45.98769239]
[1732610254016,45.49046359,231.22,231.19,0.4972288]
[1732610254196,20.0,231.27,231.19,0.4972288]
[1732610254393,23.776884,231.26,231.19,0.4972288]
[1732610254590,23.776884,231.3,231.19,0.4972288]
[1732610254795,20.0,231.27,231.19,0.4972288]
[1732610255183,45.49046359,231.26,231.19,0.4972288]
[1732610255389,45.49046359,231.26,231.19,45.98769239]
[1732610255584,65.49046359,231.27,231.2,45.49046359]
[1732610255787,45.49046359,231.28,231.21,45.49046359]
[1732610256009,44.4309,231.4,231.19,0.4972288]
[1732610256211,4.322,231.38,231.2,20.0]
[1732610256795,4.322,231.38,231.19,0.4972288]
[1732610257115,4.322,231.38,231.24,45.49046359]
[1732610257116,45.49046359,231.32,231.24,45.49046359]
[1732610257487,45.49046359,231.32,231.19,0.4972288]
[1732610257488,45.49046359,231.31,231.23,45.49046359]
[1732610257950,45.49046359,231.34,231.27,45.49046359]
[1732610258117,45.49046359,231.35,231.28,45.49046359]
[1732610258291,45.49046359,231.36,231.29,45.49046359]
[1732610258610,45.49046359,231.39,231.32,45.49046359]
[1732610258788,4.3205,231.45,231.23,22.9856]
[1732610258789,45.49046359,231.37,231.29,45.49046359]
[1732610258990,45.49046359,231.35,231.27,45.49046359]
[1732610259299,45.49046359,231.32,231.24,45.49046359]
[1732610259496,45.49046359,231.3,231.22,45.49046359]
[1732610260311,45.49046359,231.33,231.25,45.49046359]
[1732610260524,45.49046359,231.29,231.23,45.49046359]
[1732610260892,45.49046359,231.31,231.23,45.49046359]
[1732610261095,45.49046359,231.32,231.25,45.49046359]
[1732610261316,45.49046359,231.34,231.25,45.49046359]
[1732610261519,45.49046359,231.32,231.25,45.49046359]
[1732610262206,45.49046359,231.3,231.23,45.49046359]
[1732610262407,45.49046359,231.26,231.19,45.98769239]
[1732610262596,45.49046359,231.26,231.19,0.4972288]
[1732610262799,45.49046359,231.25,231.19,0.4972288]
[1732610263002,45.49046359,231.27,231.19,0.4972288]
[1732610263197,45.49046359,231.29,231.2,45.49046359]
[1732610263396,45.49046359,231.27,231.2,45.49046359]
[1732610263626,45.49046359,231.28,231.19,45.98769239]
[1732610263796,69.26734759,231.27,231.19,0.4972288]
[1732610264109,45.49046359,231.25,231.19,0.4972288]
[1732610264520,69.26734759,231.27,231.19,0.4972288]
[1732610264719,69.26734759,231.27,231.2,45.49046359]
[1732610265214,69.26734759,231.27,231.19,0.4972288]
[1732610266114,45.49046359,231.27,231.2,45.49046359]
[1732610266412,45.49046359,231.27,231.19,0.4972288]
[1732610266811,45.49046359,231.29,231.22,45.49046359]
[1732610266993,45.49046359,231.29,231.21,45.49046359]
[1732610267416,45.49046359,231.29,231.23,45.49046359]
[1732610267615,45.49046359,231.32,231.24,45.49046359]
[1732610267796,45.49046359,231.3,231.24,45.49046359]
[1732610268295,28.02879612,231.32,231.23,28.02879612]
[1732610268495,28.02879612,231.34,231.25,28.02879612]
[1732610268892,28.02879612,231.34,231.27,28.02879612]
[1732610269116,28.02879612,231.37,231.29,28.02879612]
[1732610269321,28.02879612,231.35,231.28,28.02879612]
[1732610269819,28.02879612,231.32,231.25,28.02879612]
[1732610270022,28.02879612,231.32,231.19,0.4972288]
[1732610270023,28.02879612,231.31,231.24,28.02879612]
[1732610270507,28.02879612,231.34,231.26,28.02879612]
[1732610270915,10.8036,231.41,231.19,5.47109942]
[1732610270916,28.02879612,231.32,231.25,28.02879612]
[1732610271220,28.02879612,231.35,231.27,28.02879612]
[1732610271519,28.02879612,231.34,231.26,28.02879612]
[1732610271829,28.02879612,231.36,231.28,28.02879612]
[1732610273021,10.78704356,231.43,231.28,28.02879612]
[1732610273022,28.02879612,231.35,231.28,28.02879612]
[1732610273428,28.02879612,231.34,231.26,28.02879612]
[1732610273614,28.02879612,231.33,231.26,28.02879612]
[1732610274521,28.02879612,231.31,231.24,28.02879612]
[1732610276709,28.02879612,231.33,231.26,28.02879612]
[1732610276921,28.02879612,231.35,231.28,28.02879612]
[1732610277312,28.02879612,231.35,231.27,28.02879612]
[1732610277627,10.0,231.45,231.2,10.12549]
[1732610277628,28.02879612,231.45,231.34,28.02879612]
[1732610277829,28.02879612,231.41,231.34,28.02879612]
[1732610278127,28.02879612,231.41,231.27,20.0]
[1732610278128,20.0,231.48,231.27,20.0]
[1732610278421,10.0,231.48,231.27,20.0]
[1732610278622,25.1194,231.49,231.27,20.0]
[1732610278930,23.776884,231.48,231.27,20.0]
[1732610279130,28.02879612,231.4,231.33,28.02879612]
[1732610279424,4.3202,231.47,231.34,28.02879612]
[1732610279425,28.02879612,231.41,231.34,28.02879612]
[1732610280603,28.02879612,231.41,231.27,20.0]
[1732610280604,23.776884,231.42,231.36,28.02879612]
[1732610280928,28.02879612,231.4,231.33,28.02879612]
[1732610281226,28.02879612,231.38,231.31,28.02879612]
[1732610281426,15.1219,231.45,231.24,42.7438]
[1732610281427,20.0,231.42,231.24,42.7438]
[1732610282124,23.776884,231.4,231.24,42.7438]
[1732610282313,4.3217,231.39,231.24,42.7438]
[1732610282512,28.02879612,231.36,231.28,28.02879612]
[1732610282818,23.776884,231.39,231.32,28.02879612]
[1732610283024,28.02879612,231.39,231.32,28.02879612]
[1732610283333,4.3204,231.46,231.28,30.12549]
[1732610283640,10.78458445,231.48,231.36,40.33818]
[1732610283810,12.7484,231.61,231.39,20.0]
[1732610284004,4.3179,231.59,231.4,10.64789112]
[1732610284216,4.3164,231.67,231.47,20.0]
[1732610284532,28.02879612,231.64,231.57,28.02879612]
[1732610284919,4.3164,231.67,231.52,28.02879612]
[1732610284920,28.02879612,231.59,231.52,28.02879612]
[1732610285222,28.02879612,231.56,231.5,30.0872]
[1732610285533,5.46360314,231.64,231.43,30.0872]
[1732610285704,10.0,231.61,231.43,58.11599612]
[1732610285905,28.02879612,231.49,231.43,30.0872]
[1732610286110,28.02879612,231.6,231.43,30.0872]
[1732610286314,15.1076,231.67,231.44,0.77340484]
[1732610286519,20.0,231.64,231.44,0.77340484]
[1732610286738,15.1076,231.67,231.44,0.12549]
[1732610286912,15.1076,231.67,231.43,30.0872]
[1732610287110,15.1076,231.67,231.44,0.12549]
[1732610287308,15.1076,231.67,231.49,45.43616577]
[1732610287507,45.43616577,231.56,231.49,45.43616577]
[1732610288217,45.43616577,231.55,231.48,45.43616577]
[1732610288422,45.43616577,231.57,231.49,45.43616577]
[1732610288939,23.776884,231.56,231.49,45.43616577]
[1732610289240,45.43616577,231.54,231.47,45.43616577]
[1732610289437,23.776884,231.53,231.47,45.43616577]
[1732610289618,45.43616577,231.57,231.49,45.43616577]
[1732610289814,23.776884,231.56,231.51,45.43616577]
[1732610290014,45.43616577,231.59,231.52,45.43616577]
[1732610290227,23.776884,231.58,231.52,45.43616577]
[1732610290620,45.43616577,231.56,231.48,45.43616577]
[1732610290819,45.43616577,231.52,231.45,45.43616577]
[1732610291014,45.43616577,231.56,231.49,45.43616577]
[1732610291230,4.318,231.59,231.48,45.43616577]
[1732610291231,69.21304977,231.55,231.48,45.43616577]
[1732610291434,23.776884,231.55,231.43,30.0872]
[1732610292040,4.318,231.59,231.46,20.0]
[1732610292041,23.776884,231.59,231.46,20.0]
[1732610292333,49.75376577,231.61,231.54,45.43616577]
[1732610292545,45.43616577,231.66,231.59,45.43616577]
[1732610292722,45.43616577,231.66,231.49,12.6566]
[1732610292723,45.43616577,231.68,231.61,45.43616577]
[1732610292915,49.75246577,231.68,231.6,45.43616577]
[1732610293115,4.3149,231.75,231.64,45.43616577]
[1732610293629,45.43616577,231.71,231.64,45.43616577]
[1732610294039,45.43616577,231.69,231.62,45.43616577]
[1732610294415,45.43616577,231.64,231.57,45.43616577]
[1732610295022,45.43616577,231.62,231.55,45.43616577]
[1732610295246,45.43616577,231.58,231.51,75.52336577]
[1732610295423,45.43616577,231.61,231.53,45.43616577]
[1732610295743,23.776884,231.6,231.51,30.0872]
[1732610296440,28.093484,231.66,231.51,30.0872]
[1732610296638,23.776884,231.62,231.51,30.0872]
[1732610296938,23.776884,231.57,231.51,75.52336577]
[1732610297143,45.43616577,231.58,231.51,75.52336577]
[1732610298219,45.43616577,231.56,231.49,58.09276577]
[1732610298414,45.43616577,231.55,231.49,12.6566]
[1732610298647,45.43616577,231.53,231.46,45.43616577]
[1732610298816,45.43616577,231.52,231.45,32.171]
[1732610299133,45.43616577,231.52,231.45,77.60716577]
[1732610299516,69.21304977,231.57,231.49,45.43616577]
[1732610299721,45.43616577,231.53,231.45,77.60716577]
[1732610299941,23.776884,231.57,231.38,32.171]
[1732610300134,20.0,231.5,231.38,77.60716577]
[1732610300335,45.43616577,231.44,231.37,13.1386]
[1732610300519,45.43616577,231.43,231.37,13.1386]
[1732610300719,4.3198,231.49,231.32,32.171]
[1732610300720,45.43616577,231.45,231.38,45.43616577]
[1732610300921,23.776884,231.46,231.4,45.43616577]
[1732610301130,23.776884,231.48,231.42,45.43616577]
[1732610301334,69.21304977,231.48,231.41,45.43616577]
[1732610301533,45.43616577,231.5,231.36,45.43616577]
[1732610301719,12.5306,231.58,231.39,20.0]
[1732610301720,45.43616577,231.54,231.39,20.0]
[1732610301932,45.43616577,231.56,231.48,45.43616577]
[1732610302134,45.43616577,231.53,231.46,45.43616577]
[1732610302439,49.75506577,231.54,231.47,45.43616577]
[1732610302822,45.43616577,231.51,231.44,45.43616577]
[1732610303023,45.43616577,231.47,231.4,45.43616577]
[1732610303423,23.776884,231.5,231.44,45.43616577]
[1732610303724,23.776884,231.5,231.45,45.43616577]
[1732610303926,45.43616577,231.52,231.45,45.43616577]
[1732610304234,23.776884,231.51,231.45,45.43616577]
[1732610304438,69.21304977,231.51,231.44,45.43616577]
[1732610304635,69.21304977,231.51,231.43,45.43616577]
[1732610305148,20.7953,231.59,231.36,45.43616577]
[1732610305149,23.776884,231.52,231.45,45.43616577]
[1732610305349,23.776884,231.52,231.46,45.43616577]
[1732610305520,49.75536577,231.53,231.45,45.43616577]
[1732610305723,45.43616577,231.52,231.45,45.43616577]
[1732610306049,45.43616577,231.52,231.36,49.75836577]
[1732610306050,45.43616577,231.51,231.44,45.43616577]
[1732610306439,45.43616577,231.52,231.44,45.43616577]
[1732610306947,4.3191,231.53,231.45,45.43616577]
[1732610306948,49.75526577,231.53,231.45,45.43616577]
[1732610307250,23.776884,231.52,231.46,45.43616577]
[1732610307553,45.43616577,231.57,231.5,45.43616577]
[1732610307732,4.3178,231.6,231.52,45.43616577]
[1732610307935,49.75396577,231.6,231.52,45.43616577]
[1732610308449,12.5306,231.64,231.43,0.64772766]
[1732610308450,32.2764321,231.62,231.54,27.9589321]
[1732610308749,27.9589321,231.59,231.51,27.9589321]
[1732610308948,27.9589321,231.56,231.47,27.9589321]
[1732610309547,27.9589321,231.55,231.47,27.9589321]
[1732610309748,27.9589321,231.56,231.49,27.9589321]
[1732610310049,27.9589321,231.56,231.41,45.3096]
[1732610310050,27.9589321,231.62,231.55,27.9589321]
[1732610310238,27.9589321,231.63,231.56,27.9589321]
[1732610310483,4.3169,231.65,231.48,32.2789321]
[1732610310643,23.3201,231.71,231.58,27.9589321]
[1732610310644,27.9589321,231.66,231.58,27.9589321]
[1732610310828,4.3164,231.67,231.54,31.4682]
[1732610310829,27.9589321,231.67,231.54,31.4682]
[1732610311027,32.2751321,231.69,231.61,27.9589321]
[1732610311227,32.2751321,231.69,231.54,31.4682]
[1732610311228,27.9589321,231.67,231.59,27.9589321]
[1732610311450,27.9589321,231.64,231.57,27.9589321]
[1732610311621,27.9589321,231.65,231.58,27.9589321]
[1732610311827,15.1018,231.76,231.57,20.0]
[1732610313025,27.9589321,231.68,231.6,27.9589321]
[1732610313223,27.9589321,231.67,231.6,27.9589321]
[1732610313423,27.9589321,231.68,231.6,27.9589321]
[1732610314130,27.9589321,231.64,231.57,27.9589321]